bitfinex/quotes_SOLUSD_20250313
["timestamp","ask_amount","ask_price","bid_price","bid_amount"]
[1741897605261,26.2810468,122.0,121.99,0.03]
[1741897606677,45.07285723,122.0,121.99,0.03]
[1741897607691,45.2150188,122.0,121.99,0.03]
[1741897610685,45.07285723,122.0,121.99,0.03]
[1741897611694,45.2150188,122.0,121.99,0.03]
[1741897612694,26.2810468,122.0,121.99,0.03]
[1741897612897,7.46,122.0,121.99,0.03]
[1741897613198,33.7410468,122.0,121.99,0.03]
[1741897615778,46.3440468,122.02,121.99,0.03]
[1741897615983,53.8040468,122.02,121.99,0.03]
[1741897616173,33.8040468,122.02,121.99,0.03]
[1741897616587,0.063,122.02,121.99,0.03]
[1741897617306,0.063,122.02,121.99,26.3110468]
[1741897617604,0.063,122.02,122.0,8.1967]
[1741897617978,0.063,122.02,122.0,34.4777468]
[1741897618179,0.063,122.02,121.99,8.2272]
[1741897618398,26.3440468,122.02,121.99,0.03]
[1741897620292,0.063,122.02,121.99,0.03]
[1741897620492,26.3440468,122.02,121.99,0.03]
[1741897620904,0.063,122.02,121.99,0.03]
[1741897621484,26.3440468,122.02,121.99,0.03]
[1741897623384,0.063,122.02,121.99,0.03]
[1741897625216,0.063,122.02,122.0,16.81580499]
[1741897626310,0.063,122.02,121.99,0.03]
[1741897626605,0.063,122.02,122.0,26.26657688]
[1741897627102,0.063,122.02,121.99,34.49327688]
[1741897628523,0.063,122.02,122.0,26.26657688]
[1741897628893,0.063,122.02,122.0,8.1965]
[1741897630615,0.063,122.02,122.0,34.46307688]
[1741897631000,0.063,122.02,122.01,26.26657688]
[1741897631395,0.063,122.02,122.01,96.23507688]
[1741897631596,0.063,122.02,122.01,115.16904888]
[1741897631810,0.0001,122.02,122.01,252.16904888]
[1741897632009,0.063,122.07,122.03,18.933972]
[1741897632195,0.063,122.07,122.06,26.26657688]
[1741897632395,0.063,122.07,122.06,34.45917688]
[1741897633200,0.063,122.07,122.06,102.92267688]
[1741897634642,0.063,122.07,122.06,68.4635]
[1741897635216,0.063,122.07,122.06,94.73007688]
[1741897635531,0.063,122.07,122.06,102.92267688]
[1741897638547,0.063,122.07,122.06,104.52957688]
[1741897645341,0.063,122.07,122.06,76.6561]
[1741897646040,0.063,122.07,122.06,102.92267688]
[1741897646245,0.063,122.07,122.06,93.44799431]
[1741897647836,0.063,122.1,122.06,113.92969431]
[1741897648030,0.063,122.1,122.09,16.79189431]
[1741897648233,0.063,122.1,122.09,26.21839313]
[1741897649829,0.063,122.15,122.1,0.28432314]
[1741897650031,0.063,122.15,122.14,26.21839313]
[1741897650250,0.063,122.15,122.12,26.21839313]
[1741897650552,26.28139313,122.15,122.11,26.21839313]
[1741897650738,34.46799313,122.15,122.1,94.68189313]
[1741897651956,26.21839313,122.14,122.1,94.68189313]
[1741897652335,34.46799313,122.15,122.1,102.87159313]
[1741897653334,0.063,122.15,122.11,26.21839313]
[1741897653756,34.46809313,122.15,122.11,26.21839313]
[1741897654559,26.28139313,122.15,122.11,34.40739313]
[1741897654958,0.063,122.15,122.11,34.40739313]
[1741897657942,0.063,122.15,122.08,213.6545]
[1741897657943,26.21839313,122.14,122.08,213.6545]
[1741897658144,26.21839313,122.14,122.09,26.21839313]
[1741897658360,26.21839313,122.13,122.09,26.21839313]
[1741897658559,26.21839313,122.14,122.09,26.21839313]
[1741897659261,34.40609313,122.14,122.09,34.40869313]
[1741897659756,13.8381,122.15,122.11,26.21839313]
[1741897659961,26.21839313,122.14,122.09,76.6538]
[1741897660263,40.05649313,122.15,122.1,26.21839313]
[1741897660772,48.24319313,122.15,122.1,26.21839313]
[1741897661155,48.24319313,122.15,122.09,102.87219313]
[1741897661156,26.21839313,122.14,122.09,102.87219313]
[1741897661550,48.24319313,122.15,122.09,102.87219313]
[1741897661747,48.24319313,122.15,122.1,26.21839313]
[1741897661957,40.05649313,122.15,122.1,26.21839313]
[1741897662463,0.063,122.15,122.13,26.21839313]
[1741897662640,0.063,122.15,122.14,26.21839313]
[1741897662844,0.063,122.15,122.14,94.68189313]
[1741897663248,0.063,122.15,122.14,102.86919313]
[1741897667072,0.063,122.15,122.14,103.0113547]
[1741897668294,0.063,122.15,122.14,102.86919313]
[1741897669551,0.063,122.15,122.14,68.4635]
[1741897670776,0.063,122.15,122.11,102.87089313]
[1741897671074,26.28139313,122.15,122.11,68.4635]
[1741897671470,27.83739313,122.15,122.11,68.4635]
[1741897673281,36.02409313,122.15,122.11,68.4635]
[1741897674481,26.21839313,122.13,122.1,0.03]
[1741897675079,33.65839313,122.14,122.1,0.03]
[1741897675675,41.84589313,122.14,122.1,0.03]
[1741897677380,32.42509313,122.13,122.1,0.03]
[1741897679681,40.61359313,122.13,122.1,0.03]
[1741897679985,32.42509313,122.13,122.1,0.03]
[1741897681580,6.2067,122.13,122.1,0.03]
[1741897682590,7.44,122.14,122.1,34.43839313]
[1741897684385,7.44,122.14,122.1,25.00162763]
[1741897684973,25.84062763,122.15,122.1,25.00162763]
[1741897685892,9.059,122.15,122.11,16.78162763]
[1741897686271,0.063,122.15,122.12,16.78162763]
[1741897686689,0.063,122.15,122.13,16.78162763]
[1741897686880,0.063,122.15,122.14,16.78162763]
[1741897687773,0.063,122.15,122.13,16.78162763]
[1741897687995,0.063,122.15,122.14,8.1873]
[1741897689191,0.063,122.15,122.14,26.20764696]
[1741897691198,0.063,122.15,122.14,34.39494696]
[1741897691395,0.063,122.15,122.14,26.20764696]
[1741897691579,0.063,122.15,122.13,34.39534696]
[1741897692670,0.063,122.15,122.13,68.4635]
[1741897695788,0.063,122.15,122.12,34.39574696]
[1741897697500,26.20764696,122.13,122.1,0.03]
[1741897697909,0.063,122.15,122.11,26.20764696]
[1741897699202,0.063,122.15,122.11,34.39624696]
[1741897700082,26.27064696,122.15,122.11,34.39624696]
[1741897700281,26.27064696,122.15,122.11,8.1886]
[1741897700493,26.20764696,122.14,122.1,0.03]
[1741897700694,26.20764696,122.12,122.1,0.03]
[1741897701287,35.25394696,122.13,122.1,0.03]
[1741897702075,9.0463,122.13,122.1,0.03]
[1741897702481,35.25394696,122.13,122.1,0.03]
[1741897703093,43.44194696,122.13,122.1,0.03]
[1741897704095,35.25394696,122.13,122.1,0.03]
[1741897705595,9.0463,122.13,122.1,0.03]
[1741897706502,7.44,122.13,122.1,0.03]
[1741897708498,7.44,122.13,122.11,16.78385416]
[1741897709115,16.84685416,122.15,122.1,16.81385416]
[1741897709300,7.503,122.15,122.12,16.78385416]
[1741897709701,7.503,122.15,122.11,16.78385416]
[1741897709906,0.063,122.15,122.11,16.78385416]
[1741897710108,0.063,122.15,122.12,16.78385416]
[1741897710611,0.063,122.15,122.12,24.97185416]
[1741897712208,0.063,122.15,122.13,16.78385416]
[1741897712810,0.063,122.15,122.14,16.78385416]
[1741897713829,0.063,122.15,122.14,24.97115416]
[1741897718612,0.063,122.15,122.12,85.24735416]
[1741897718821,0.063,122.15,122.12,93.43555416]
[1741897719722,0.063,122.15,122.11,8.1888]
[1741897719920,24.26685416,122.15,122.11,8.1888]
[1741897720129,7.483,122.15,122.12,16.78385416]
[1741897720307,7.483,122.15,122.13,16.78385416]
[1741897720807,7.483,122.15,122.12,16.78385416]
[1741897722229,7.483,122.15,122.13,8.1879]
[1741897722527,7.483,122.15,122.13,16.78385416]
[1741897723730,7.483,122.15,122.12,93.43565416]
[1741897724924,7.483,122.15,122.12,68.4635]
[1741897728036,7.483,122.15,122.11,24.97275416]
[1741897731037,7.483,122.15,122.11,8.1889]
[1741897731231,7.483,122.15,122.11,24.97275416]
[1741897733536,7.483,122.15,122.11,8.1889]
[1741897737817,7.483,122.15,122.11,24.97275416]
[1741897738019,7.483,122.15,122.12,16.78385416]
[1741897739239,7.483,122.15,122.13,16.78385416]
[1741897739616,0.063,122.15,122.13,8.1877]
[1741897740438,0.063,122.15,122.14,16.78385416]
[1741897740940,0.063,122.15,122.13,24.97155416]
[1741897741239,0.063,122.15,122.12,24.97245416]
[1741897742760,0.063,122.15,122.12,93.43595416]
[1741897743744,0.063,122.15,122.13,16.78385416]
[1741897743933,0.063,122.15,122.14,16.78385416]
[1741897744744,0.063,122.15,122.14,24.97115416]
[1741897745826,0.063,122.15,122.14,8.1873]
[1741897747427,0.063,122.15,122.13,24.97155416]
[1741897747628,0.063,122.15,122.13,8.1877]
[1741897748625,0.063,122.15,122.13,24.97155416]
[1741897748821,0.063,122.15,122.14,16.78385416]
[1741897750760,0.063,122.15,122.14,24.97115416]
[1741897754053,0.063,122.16,122.14,25.11331573]
[1741897754259,0.063,122.16,122.15,16.78385416]
[1741897754439,0.063,122.16,122.15,85.24735416]
[1741897755171,0.063,122.16,122.15,93.43395416]
[1741897760929,0.063,122.16,122.15,76.6501]
[1741897761128,0.063,122.16,122.15,93.46395416]
[1741897763647,0.063,122.16,122.15,93.60611573]
[1741897764950,0.063,122.16,122.15,93.46395416]
[1741897765447,0.063,122.16,122.15,93.60611573]
[1741897772160,0.063,122.16,122.15,93.46395416]
[1741897772356,0.063,122.16,122.15,93.60611573]
[1741897772564,0.063,122.16,122.15,93.46395416]
[1741897772745,0.063,122.16,122.15,76.6801]
[1741897775262,0.063,122.16,122.15,0.03]
[1741897776458,0.063,122.16,122.15,25.00045416]
[1741897783173,0.063,122.16,122.15,25.14261573]
[1741897786767,0.063,122.16,122.15,106.14261573]
[1741897786968,0.063,122.16,122.15,106.00045416]
[1741897787153,0.063,122.16,122.15,89.2166]
[1741897787652,0.063,122.16,122.15,106.00045416]
[1741897789467,0.063,122.16,122.15,106.14261573]
[1741897792875,0.0001,122.16,122.15,261.93442616]
[1741897795175,0.0001,122.16,122.15,329.0698428]
[1741897796054,0.0001,122.16,122.15,261.93442616]
[1741897804766,0.063,122.2,122.16,0.14216157]
[1741897805065,0.063,122.2,122.19,24.96775416]
[1741897805266,0.063,122.2,122.19,105.96775416]
[1741897812868,0.0001,122.2,122.19,261.90172616]
[1741897814789,0.063,122.28,122.23,20.28432314]
[1741897815084,0.063,122.28,122.27,16.78385416]
[1741897815273,0.063,122.28,122.27,97.92601573]
[1741897817081,0.063,122.28,122.27,106.10461573]
[1741897819289,0.063,122.28,122.27,124.89642616]
[1741897819699,0.063,122.28,122.27,106.10461573]
[1741897820672,0.063,122.28,122.27,105.96245416]
[1741897820873,0.063,122.28,122.27,81.0]
[1741897821083,0.063,122.28,122.26,16.78385416]
[1741897821394,0.063,122.28,122.25,105.96355416]
[1741897822106,0.063,122.28,122.26,16.78385416]
[1741897823500,0.063,122.28,122.26,24.96285416]
[1741897824510,0.063,122.28,122.25,81.0]
[1741897824511,16.84685416,122.28,122.25,81.0]
[1741897824707,16.84685416,122.28,122.23,234.78385416]
[1741897824902,0.063,122.28,122.24,16.78385416]
[1741897825099,16.78385416,122.26,122.22,24.96555416]
[1741897826104,16.78385416,122.26,122.22,8.1817]
[1741897826304,24.18385416,122.27,122.22,24.96555416]
[1741897826601,16.78385416,122.26,122.22,8.1817]
[1741897828497,24.96315416,122.26,122.21,105.96615416]
[1741897828696,16.78385416,122.25,122.21,89.1823]
[1741897828885,24.96315416,122.26,122.21,105.96615416]
[1741897829599,16.78385416,122.25,122.21,81.0]
[1741897829793,16.78385416,122.22,122.21,81.0]
[1741897829998,16.78385416,122.22,122.19,0.03]
[1741897830307,16.78385416,122.21,122.19,0.03]
[1741897831001,16.78385416,122.22,122.19,0.03]
[1741897832292,16.84685416,122.22,122.19,0.03]
[1741897833002,16.78385416,122.21,122.19,0.03]
[1741897833183,16.78385416,122.2,122.19,0.03]
[1741897835615,18.71264886,122.22,122.19,0.03]
[1741897835783,16.78385416,122.21,122.19,0.03]
[1741897838605,0.063,122.22,122.19,0.03]
[1741897838802,0.063,122.22,122.19,97.81385416]
[1741897838997,0.063,122.22,122.2,16.78385416]
[1741897839309,0.063,122.22,122.19,97.81385416]
[1741897839803,0.063,122.22,122.21,16.78385416]
[1741897840686,0.063,122.22,122.21,97.78385416]
[1741897840890,0.063,122.22,122.21,98.0681773]
[1741897841101,0.063,122.22,122.21,116.71782616]
[1741897841411,0.063,122.22,122.21,106.10861573]
[1741897841712,0.063,122.22,122.21,89.1826]
[1741897844093,0.063,122.22,122.21,105.96645416]
[1741897846593,0.0001,122.22,122.21,261.90042616]
[1741897846917,0.0001,122.22,122.21,329.0358428]
[1741897847120,0.063,122.28,122.26,16.78385416]
[1741897847416,0.063,122.28,122.26,97.78375416]
[1741897848601,0.063,122.28,122.26,105.96275416]
[1741897849317,0.063,122.28,122.26,80.9999]
[1741897850607,0.063,122.28,122.26,89.1791]
[1741897850809,0.063,122.28,122.26,80.9999]
[1741897851114,0.063,122.28,122.2,8.2131]
[1741897851115,60.04329054,122.27,122.2,8.2131]
[1741897851320,26.15809054,122.25,122.2,89.213]
[1741897851525,26.15809054,122.26,122.21,26.15809054]
[1741897852618,26.15809054,122.26,122.21,34.34009054]
[1741897852921,26.15809054,122.26,122.21,8.182]
[1741897854014,26.15809054,122.26,122.21,34.34009054]
[1741897857427,26.15809054,122.26,122.21,34.37009054]
[1741897857622,26.22109054,122.26,122.21,34.37009054]
[1741897857926,26.22109054,122.26,122.21,135.82649054]
[1741897858726,0.063,122.26,122.23,26.15809054]
[1741897858906,0.063,122.26,122.24,26.15809054]
[1741897859325,0.063,122.26,122.25,26.15809054]
[1741897859626,0.063,122.28,122.27,26.15809054]
[1741897860332,0.063,122.28,122.27,107.15799054]
[1741897861809,0.063,122.28,122.27,115.33659054]
[1741897863308,0.063,122.28,122.27,107.15799054]
[1741897863737,0.063,122.28,122.27,80.9999]
[1741897864231,0.063,122.28,122.25,26.15809054]
[1741897864448,0.063,122.28,122.24,107.15799054]
[1741897865013,0.063,122.28,122.25,26.15809054]
[1741897866419,0.063,122.28,122.24,115.33849054]
[1741897866621,0.063,122.28,122.24,107.15799054]
[1741897866835,26.22109054,122.28,122.24,80.9999]
[1741897867235,0.063,122.28,122.24,115.33859054]
[1741897867447,0.063,122.28,122.24,80.9999]
[1741897867621,26.15809054,122.26,122.24,80.9999]
[1741897868021,6.2208,122.28,122.24,80.9999]
[1741897868237,26.15809054,122.27,122.24,80.9999]
[1741897868431,26.15809054,122.27,122.22,252.33969054]
[1741897869538,6.2208,122.28,122.22,252.33969054]
[1741897869743,34.33679054,122.27,122.22,252.33969054]
[1741897870439,26.15809054,122.25,122.24,0.03]
[1741897870647,26.15809054,122.26,122.24,0.03]
[1741897871139,1.6392,122.27,122.24,0.03]
[1741897871744,27.79729054,122.27,122.24,0.03]
[1741897874342,1.6392,122.27,122.24,0.03]
[1741897874516,27.79729054,122.27,122.24,0.03]
[1741897874934,35.97599054,122.27,122.24,0.03]
[1741897875129,27.79729054,122.27,122.24,0.03]
[1741897875530,35.97599054,122.27,122.24,0.03]
[1741897875840,26.15809054,122.26,122.24,0.03]
[1741897876217,0.063,122.28,122.24,0.03]
[1741897876425,0.063,122.28,122.25,34.33799054]
[1741897876746,0.063,122.28,122.25,107.15809054]
[1741897876934,0.063,122.28,122.25,81.0]
[1741897877449,0.063,122.28,122.25,107.15809054]
[1741897877746,0.063,122.28,122.25,81.0]
[1741897878347,0.063,122.28,122.25,89.1797]
[1741897878817,26.22109054,122.28,122.25,81.0]
[1741897879734,34.39919054,122.28,122.25,81.0]
[1741897880134,26.15809054,122.27,122.25,81.0]
[1741897880444,26.15809054,122.27,122.24,0.03]
[1741897880620,0.063,122.28,122.24,8.2102]
[1741897880826,0.063,122.28,122.24,34.36829054]
[1741897881240,0.063,122.28,122.25,26.15809054]
[1741897882124,0.063,122.28,122.26,8.1792]
[1741897885343,26.22109054,122.28,122.24,8.2104]
[1741897885745,0.063,122.28,122.24,8.2104]
[1741897889250,0.063,122.28,122.24,34.36849054]
[1741897890554,0.063,122.28,122.24,8.2104]
[1741897891350,26.15809054,122.26,122.24,0.03]
[1741897891550,26.15809054,122.27,122.24,8.2105]
[1741897891854,0.063,122.28,122.24,8.2105]
[1741897894457,0.063,122.28,122.25,16.74507079]
[1741897894863,0.063,122.28,122.26,8.1792]
[1741897897565,0.063,122.28,122.25,8.1796]
[1741897900268,0.063,122.28,122.25,24.92467079]
[1741897900987,0.063,122.28,122.27,16.88723236]
[1741897901167,0.063,122.28,122.27,97.88723236]
[1741897901864,0.063,122.29,122.28,0.28432314]
[1741897902050,0.0001,122.31,122.3,38.933972]
[1741897902248,0.0001,122.33,122.32,18.79181043]
[1741897902457,0.0001,122.33,122.32,46.48766481]
[1741897902764,0.0001,122.33,122.32,264.48756481]
[1741897904470,0.0001,122.33,122.32,272.66276481]
[1741897904849,0.0001,122.33,122.32,272.80492638]
[1741897905645,0.0001,122.33,122.32,254.01311595]
[1741897906768,0.0001,122.33,122.32,117.01311595]
[1741897906970,0.0001,122.33,122.32,116.87095438]
[1741897907153,0.0001,122.33,122.32,108.69575438]
[1741897907463,0.0001,122.33,122.32,35.87105438]
[1741897907662,0.0001,122.33,122.32,36.01321595]
[1741897909380,0.0001,122.33,122.32,274.03074822]
[1741897909561,0.0001,122.33,122.32,272.80492638]
[1741897915068,0.0001,122.33,122.32,279.05262638]
[1741897915252,0.0001,122.33,122.32,305.16938076]
[1741897915453,0.0001,122.33,122.32,279.05262638]
[1741897916463,0.0001,122.34,122.33,0.14216157]
[1741897916670,0.0001,122.34,122.33,271.60110519]
[1741897916863,0.0001,122.34,122.33,270.37557033]
[1741897917378,0.0001,122.34,122.33,278.55017033]
[1741897917750,0.0001,122.35,122.34,81.14206157]
[1741897917956,0.0001,122.35,122.34,141.980906]
[1741897919385,0.03,122.38,122.36,0.14216157]
[1741897919564,0.03,122.38,122.36,107.25881595]
[1741897920070,0.03,122.38,122.36,126.05062638]
[1741897920781,0.03,122.38,122.36,107.25881595]
[1741897921386,0.03,122.38,122.36,115.43141595]
[1741897923356,0.03,122.38,122.36,115.28925438]
[1741897923663,0.03,122.38,122.36,107.11665438]
[1741897923976,0.03,122.38,122.36,115.28925438]
[1741897926664,0.03,122.38,122.35,34.28995438]
[1741897927179,0.03,122.38,122.36,26.11675438]
[1741897928685,0.03,122.38,122.35,34.28995438]
[1741897929283,0.03,122.38,122.36,26.11675438]
[1741897931385,0.03,122.38,122.36,34.28935438]
[1741897934281,0.03,122.38,122.36,24.88184209]
[1741897934486,0.03,122.38,122.36,106.16606523]
[1741897939002,0.0001,122.38,122.37,35.64321409]
[1741897939185,0.0001,122.38,122.37,43.02321409]
[1741897939394,0.0001,122.38,122.37,261.02311409]
[1741897940291,0.0001,122.38,122.37,269.19501409]
[1741897941073,0.0001,122.38,122.37,250.54536523]
[1741897941901,0.0001,122.38,122.37,269.19501409]
[1741897945406,0.0001,122.38,122.37,250.54536523]
[1741897947401,0.0001,122.38,122.37,269.19501409]
[1741897950383,0.0001,122.38,122.37,89.1718]
[1741897950579,0.0001,122.38,122.37,105.88104209]
[1741897950802,0.0001,122.38,122.37,89.1718]
[1741897953306,0.0001,122.38,122.35,81.0299]
[1741897953489,16.70934209,122.38,122.35,0.03]
[1741897954203,24.88084209,122.38,122.35,0.03]
[1741897955811,16.70934209,122.38,122.35,0.03]
[1741897956010,24.88084209,122.38,122.35,0.03]
[1741897956306,26.12540062,122.36,122.35,0.03]
[1741897957716,26.12540062,122.37,122.35,0.03]
[1741897959724,26.12540062,122.36,122.35,0.03]
[1741897966413,52.94764948,122.36,122.35,0.03]
[1741897968106,44.77504948,122.36,122.35,0.03]
[1741897968438,26.12540062,122.36,122.35,0.03]
[1741897968818,53.23197262,122.36,122.35,0.03]
[1741897969206,0.14216157,122.31,122.24,0.03]
[1741897969537,26.12540062,122.25,122.24,0.03]
[1741897969815,26.12540062,122.29,122.24,26.15540062]
[1741897969997,26.12540062,122.29,122.24,34.33600062]
[1741897970419,26.12540062,122.28,122.24,8.2106]
[1741897970599,36.154272,122.31,122.24,8.2106]
[1741897970600,26.12540062,122.27,122.24,8.2106]
[1741897971304,26.12540062,122.28,122.24,8.2106]
[1741897971500,26.12540062,122.27,122.24,8.2106]
[1741897971718,26.12540062,122.27,122.24,0.03]
[1741897971920,26.12540062,122.26,122.24,0.03]
[1741897973822,26.12540062,122.25,122.24,0.03]
[1741897975098,26.12540062,122.26,122.24,0.03]
[1741897976402,16.75014892,122.26,122.24,0.03]
[1741897977711,16.75014892,122.25,122.24,0.03]
[1741897979228,16.75014892,122.26,122.24,0.03]
[1741897982310,16.75014892,122.25,122.24,0.03]
[1741897987552,16.75014892,122.26,122.24,0.03]
[1741897988052,7.38,122.27,122.24,0.03]
[1741897988236,16.75014892,122.25,122.24,0.03]
[1741897992622,16.75014892,122.26,122.24,0.03]
[1741897994449,7.38,122.27,122.24,0.03]
[1741897994750,16.75014892,122.26,122.24,0.03]
[1741897995449,16.75014892,122.25,122.24,0.03]
[1741897995638,35.68412092,122.25,122.24,0.03]
[1741897996048,43.86402092,122.25,122.24,0.03]
[1741897997342,18.79181043,122.24,122.22,0.03]
[1741897997543,24.13014892,122.23,122.22,0.03]
[1741897998349,42.92195935,122.23,122.22,0.03]
[1741897998580,43.06412092,122.23,122.22,0.03]
[1741897999561,51.24532092,122.23,122.22,0.03]
[1741898004489,118.2459166,122.23,122.22,0.03]
[1741898005572,118.2459166,122.23,122.2,0.03]
[1741898005573,20.563372,122.22,122.2,0.03]
[1741898005891,35.54195935,122.21,122.2,0.03]
[1741898006676,43.72455935,122.21,122.2,0.03]
[1741898009821,18.79181043,122.2,122.19,0.03]
[1741898009970,35.54195935,122.2,122.19,0.03]
[1741898011095,43.72525935,122.2,122.19,0.03]
[1741898013713,25.07561049,122.2,122.19,0.03]
[1741898013880,43.72525935,122.2,122.19,0.03]
[1741898014081,43.86742092,122.2,122.19,0.03]
[1741898015499,16.89231049,122.2,122.19,0.03]
[1741898015806,43.72525935,122.2,122.19,0.03]
[1741898016107,35.54195935,122.2,122.19,0.03]
[1741898016608,43.72525935,122.2,122.19,0.03]
[1741898022710,35.54195935,122.2,122.19,0.03]
[1741898024112,24.13014892,122.2,122.19,0.03]
[1741898025122,24.19314892,122.2,122.19,0.03]
[1741898025415,16.81314892,122.2,122.19,0.03]
[1741898025623,7.443,122.2,122.19,0.03]
[1741898027216,0.063,122.2,122.19,0.03]
[1741898028949,16.81314892,122.2,122.19,0.03]
[1741898032866,0.063,122.2,122.19,0.03]
[1741898036345,16.81314892,122.2,122.19,0.03]
[1741898036643,0.063,122.2,122.19,0.03]
[1741898036845,16.81314892,122.2,122.19,0.03]
[1741898037073,0.063,122.2,122.19,0.03]
[1741898040863,0.063,122.2,122.19,8.2139]
[1741898041249,0.063,122.2,122.19,24.96404892]
[1741898043253,0.0001,122.2,122.19,24.96404892]
[1741898043450,0.0001,122.2,122.19,26.48464892]
[1741898043963,7.38,122.25,122.19,153.02982092]
[1741898044177,223.943,122.26,122.22,16.75014892]
[1741898044848,223.943,122.26,122.19,136.279672]
[1741898044849,0.063,122.26,122.24,16.75014892]
[1741898045349,0.063,122.26,122.25,8.1799]
[1741898045884,0.063,122.26,122.25,24.93004892]
[1741898046171,0.063,122.26,122.25,105.92994892]
[1741898048771,0.063,122.26,122.25,80.9999]
[1741898050463,0.063,122.26,122.23,18.30794892]
[1741898051281,0.063,122.26,122.23,26.48914892]
[1741898051575,0.063,122.26,122.23,18.30794892]
[1741898051749,0.063,122.26,122.23,26.48904892]
[1741898052175,0.063,122.26,122.23,18.30794892]
[1741898052680,0.063,122.26,122.23,26.48914892]
[1741898054780,0.063,122.26,122.24,16.75014892]
[1741898055974,0.063,122.26,122.25,16.75014892]
[1741898056688,0.063,122.26,122.24,24.93074892]
[1741898056984,0.063,122.26,122.25,16.75014892]
[1741898057167,0.063,122.26,122.25,97.75004892]
[1741898057970,0.0001,122.26,122.25,253.68402092]
[1741898058181,0.0001,122.26,122.25,260.07542092]
[1741898058764,0.0001,122.26,122.25,268.25532092]
[1741898060875,0.0001,122.26,122.25,249.32134892]
[1741898062174,0.0001,122.26,122.25,112.32134892]
[1741898063488,0.0001,122.26,122.25,105.92994892]
[1741898064979,0.0001,122.26,122.25,16.75014892]
[1741898065281,0.0001,122.26,122.24,24.93044892]
[1741898065592,0.0001,122.26,122.23,107.48884892]
[1741898065792,0.0001,122.26,122.24,16.75014892]
[1741898066000,0.0001,122.26,122.25,16.75014892]
[1741898066485,0.0001,122.26,122.24,24.93044892]
[1741898068295,0.0001,122.26,122.24,8.1803]
[1741898068468,0.0001,122.26,122.23,107.48884892]
[1741898068785,0.0001,122.26,122.23,105.93104892]
[1741898072385,0.0001,122.26,122.23,105.96104892]
[1741898073396,0.0001,122.26,122.25,8.1799]
[1741898077200,0.0001,122.26,122.25,105.92994892]
[1741898077700,0.0001,122.26,122.25,80.9999]
[1741898079300,0.0001,122.26,122.25,89.1798]
[1741898080795,0.0001,122.26,122.25,105.92994892]
[1741898082603,0.0001,122.26,122.25,24.93004892]
[1741898090712,0.0001,122.26,122.25,8.1799]
[1741898091010,0.0001,122.26,122.24,8.1806]
[1741898091214,0.0001,122.26,122.24,24.93074892]
[1741898092215,0.0001,122.26,122.24,8.1806]
[1741898092589,0.0001,122.26,122.24,24.93074892]
[1741898093213,0.0001,122.26,122.24,8.1806]
[1741898096393,0.0001,122.26,122.24,8.2106]
[1741898097514,0.0001,122.26,122.24,24.96074892]
[1741898097718,0.0001,122.26,122.25,16.75014892]
[1741898098485,0.0001,122.26,122.25,97.75004892]
[1741898099388,0.0001,122.26,122.25,105.92994892]
[1741898108421,0.0001,122.26,122.25,105.95994892]
[1741898112825,0.0001,122.26,122.25,89.2098]
[1741898113129,0.0001,122.26,122.25,105.95994892]
[1741898117026,0.0001,122.26,122.25,89.2098]
[1741898120625,0.0001,122.26,122.25,8.2099]
[1741898123438,0.0001,122.26,122.25,261.89392092]
[1741898134350,0.0001,122.31,122.29,21.94302314]
[1741898134646,0.0001,122.31,122.3,35.68412092]
[1741898134853,0.0001,122.31,122.3,36.91007432]
[1741898135151,6.2177,122.37,122.33,20.0]
[1741898135454,0.0001,122.38,122.35,16.75014892]
[1741898135754,0.0001,122.38,122.33,100.9999]